fUST/lending_fUST_20240811
["ID","MTS","AMOUNT","RATE_DAILY","PERIOD"]
[334629146,1723362656389,-500.0,0.00021643,3]
[334629147,1723362656402,-500.0,0.00021643,3]
[334629148,1723362656414,-500.0,0.00021643,3]
[334629149,1723362656426,-500.0,0.00021643,2]
[334629150,1723362656438,-500.0,0.00021643,3]
[334629151,1723362656451,-500.0,0.00021643,3]
[334629152,1723362656463,-500.0,0.00021643,3]
[334629153,1723362656476,-500.0,0.00021643,3]
[334629154,1723362656488,-500.0,0.00021643,3]
[334629155,1723362656500,-1254.17,0.00021643,3]
[334629156,1723362656512,-915.89,0.00021643,3]
[334629157,1723362656524,-500.0,0.00021643,3]
[334629158,1723362656536,-511.69173262,0.00021643,3]
[334629159,1723362656548,-500.0,0.00021643,3]
[334629160,1723362656560,-500.0,0.00021643,3]
[334629161,1723362656572,-978.48,0.00021643,3]
[334629162,1723362656584,-580.17,0.00021643,3]
[334629163,1723362656597,-500.0,0.00021643,3]
[334629164,1723362656609,-500.0,0.00021643,3]
[334629165,1723362656621,-889.52,0.00021643,3]
[334629166,1723362656633,-500.0,0.00021643,3]
[334629167,1723362656645,-500.0,0.00021643,3]
[334629168,1723362656658,-500.0,0.00021643,3]
[334629169,1723362656670,-228.112835,0.00021643,2]
[334629170,1723362656682,-500.0,0.00021643,3]
[334629171,1723362656695,-228.112835,0.00021643,2]
[334629172,1723362656707,-500.0,0.00021643,3]
[334629173,1723362656721,-500.0,0.00021643,3]
[334629174,1723362656734,-980.3,0.00021643,3]
[334629175,1723362656747,-500.0,0.00021643,3]
[334629176,1723362656759,-500.0,0.00021643,3]
[334629177,1723362656771,-500.0,0.00021643,3]
[334629178,1723362656784,-500.0,0.00021643,3]
[334629179,1723362656797,-500.0,0.00021643,3]
[334629180,1723362656810,-500.0,0.00021643,3]
[334629181,1723362656822,-1842.55,0.00021643,3]
[334629182,1723362656835,-500.0,0.00021643,3]
[334629183,1723362656848,-500.0,0.00021643,3]
[334629184,1723362656861,-500.0,0.00021643,3]
[334629185,1723362656874,-755.76,0.00021643,3]
[334629186,1723362656886,-500.0,0.00021643,3]
[334629187,1723362656898,-516.72,0.00021643,3]
[334629188,1723362656911,-500.0,0.00021643,3]
[334629189,1723362656923,-500.0,0.00021643,3]
[334629190,1723362656936,-500.0,0.00021643,3]
[334629191,1723362656948,-500.0,0.00021643,3]
[334629192,1723362656960,-500.0,0.00021643,3]
[334629193,1723362656974,-1632.41,0.00021643,3]
[334629194,1723362656987,-500.0,0.00021643,3]
[334629195,1723362656999,-500.0,0.00021643,3]
[334629196,1723362657011,-550.00418135,0.00021643,3]
[334629197,1723362657024,-518.33653538,0.00021643,3]
[334629198,1723362657037,-602.71,0.00021643,3]
[334629199,1723362657050,-597.31,0.00021643,3]
[334629200,1723362657062,-913.27,0.00021643,3]
[334629201,1723362657074,-601.09,0.00021643,2]
[334629202,1723362657087,-613.51,0.00021643,3]
[334629203,1723362657099,-1119.4,0.00021643,3]
[334629204,1723362657111,-500.0,0.00021643,3]
[334629205,1723362657123,-500.0,0.00021643,3]
[334629206,1723362657134,-500.0,0.00021643,3]
[334629207,1723362657147,-500.0,0.00021643,3]
[334629208,1723362657159,-500.0,0.00021643,3]
[334629209,1723362657171,-500.0,0.00021643,3]
[334629210,1723362657180,-500.0,0.00021643,3]
[334629211,1723362657189,-712.22,0.00021643,3]
[334629212,1723362657199,-462.073422,0.00021643,2]
[334629213,1723362657211,-462.073422,0.00021643,2]
[334629214,1723362657220,-500.0,0.00021643,3]
[334629215,1723362657229,-500.0,0.00021643,3]
[334629216,1723362657408,-756.66,0.00021643,3]
[334629217,1723362657431,-702.55,0.00021643,3]
[334629218,1723362657440,-500.0,0.00021643,3]
[334629219,1723362657450,-663.08,0.00021643,3]
[334629220,1723362657459,-500.0,0.00021643,3]
[334629221,1723362657468,-500.0,0.00021643,3]
[334629222,1723362657478,-500.0,0.00021643,3]
[334629223,1723362657487,-500.0,0.00021643,3]
[334629224,1723362657496,-500.0,0.00021643,3]
[334629225,1723362657505,-500.0,0.00021643,3]
[334629226,1723362657515,-1128.48,0.00021643,3]
[334629227,1723362657524,-1307.77,0.00021643,3]
[334629228,1723362657533,-592.84,0.00021643,3]
[334629229,1723362657542,-500.0,0.00021643,3]
[334629230,1723362657551,-964.79,0.00021643,3]
[334629231,1723362657560,-611.55,0.00021643,3]
[334629232,1723362657569,-787.99,0.00021643,3]
[334629233,1723362657578,-727.74,0.00021643,3]
[334629234,1723362657588,-884.38,0.00021643,3]
[334629235,1723362657597,-500.0,0.00021643,3]
[334629236,1723362657606,-1340.25,0.00021643,3]
[334629237,1723362657615,-499.99950957,0.00021643,3]
[334629238,1723362657624,-500.0,0.00021643,3]
[334629239,1723362657634,-500.0,0.00021643,3]
[334629240,1723362657643,-1311.55,0.00021643,3]
[334629241,1723362657652,-500.0,0.00021643,3]
[334629242,1723362657661,-557.89,0.00021643,3]
[334629243,1723362657670,-500.0,0.00021643,3]
[334629244,1723362657680,-655.39,0.00021643,3]
[334629245,1723362657689,-1362.06,0.00021643,3]
[334629246,1723362657698,-505.26,0.00021643,3]
[334629247,1723362657708,-604.21,0.00021643,3]
[334629248,1723362657717,-500.0,0.00021643,3]
[334629249,1723362657726,-540.40713308,0.00021643,3]
[334629250,1723362657735,-1408.56,0.00021643,3]
[334629251,1723362657745,-633.58303581,0.00021643,3]
[334629252,1723362657754,-500.0,0.00021643,3]
[334629253,1723362657764,-500.0,0.00021643,3]
[334629254,1723362657773,-1138.06,0.00021643,3]
[334629255,1723362657782,-500.0,0.00021643,3]
[334629256,1723362657791,-500.0,0.00021643,3]
[334629257,1723362657801,-522.40187201,0.00021643,3]
[334629258,1723362657810,-500.0,0.00021643,3]
[334629259,1723362657820,-500.0,0.00021643,3]
[334629260,1723362657830,-500.0,0.00021643,3]
[334629261,1723362657839,-500.0,0.00021643,3]
[334629262,1723362657848,-500.0,0.00021643,3]
[334629263,1723362657858,-500.0,0.00021643,3]
[334629264,1723362657867,-500.0,0.00021643,3]
[334629265,1723362657876,-729.4,0.00021643,3]
[334629266,1723362657886,-862.17,0.00021643,3]
[334629267,1723362657896,-500.0,0.00021643,3]
[334629268,1723362657905,-500.0,0.00021643,3]
[334629269,1723362657914,-500.0,0.00021643,3]
[334629270,1723362657923,-270.805678,0.00021643,2]
[334629271,1723362657932,-270.805678,0.00021643,2]
[334629272,1723362657943,-500.0,0.00021643,3]
[334629273,1723362657955,-500.0,0.00021643,3]
[334629274,1723362657967,-270.805678,0.00021643,2]
[334629275,1723362657978,-270.805678,0.00021643,2]
[334629276,1723362657988,-500.0,0.00021643,3]
[334629277,1723362658000,-581.13,0.00021643,3]
[334629278,1723362658009,-500.0,0.00021643,3]
[334629279,1723362658018,-500.0,0.00021643,3]
[334629280,1723362658027,-1721.14,0.00021643,3]
[334629281,1723362658036,-151.0,0.00021643,2]
[334629282,1723362658045,-151.0,0.00021643,2]
[334629283,1723362658058,-818.53,0.00021643,3]
[334629284,1723362658068,-1817.84,0.00021643,3]
[334629285,1723362658081,-500.0,0.00021643,3]
[334629286,1723362658090,-500.0,0.00021643,3]
[334629287,1723362658102,-500.0,0.00021643,3]
[334629288,1723362658112,-500.0,0.00021643,3]
[334629289,1723362658123,-500.0,0.00021643,3]
[334629290,1723362658134,-1744.85,0.00021643,3]
[334629291,1723362658145,-500.0,0.00021643,3]
[334629292,1723362658156,-425.79725146,0.00021643,3]
[334629293,1723362658168,-500.0,0.00021643,3]
[334629294,1723362658177,-500.0,0.00021643,3]
[334629295,1723362658186,-674.3,0.00021643,3]
[334629296,1723362658195,-1208.73,0.00021643,3]
[334629297,1723362658209,-1842.7,0.00021643,3]
[334629298,1723362658221,-500.0,0.00021643,3]
[334629299,1723362658232,-151.0,0.00021643,2]
[334629300,1723362658244,-500.0,0.00021643,3]
[334629301,1723362658254,-723.49,0.00021643,3]
[334629302,1723362658266,-513.7,0.00021643,3]
[334629303,1723362658276,-500.0,0.00021643,3]
[334629304,1723362658286,-500.0,0.00021643,3]
[334629305,1723362658296,-500.0,0.00021643,3]
[334629306,1723362658305,-3106.96,0.00021643,3]
[334629307,1723362658315,-565.6,0.00021643,2]
[334629308,1723362658324,-565.6,0.00021643,2]
[334629309,1723362658333,-905.38,0.00021643,3]
[334629310,1723362658342,-565.6,0.00021643,2]
[334629311,1723362658352,-500.0,0.00021643,3]
[334629312,1723362658361,-565.6,0.00021643,2]
[334629313,1723362658371,-500.0,0.00021643,3]
[334629314,1723362658381,-500.0,0.00021643,3]
[334629315,1723362658390,-2172.69,0.00021643,3]
[334629316,1723362658399,-500.0,0.00021643,3]
[334629317,1723362658408,-3126.74,0.00021643,3]
[334629318,1723362658418,-500.0,0.00021643,3]
[334629319,1723362658429,-1799.61,0.00021643,3]
[334629320,1723362658439,-2205.58,0.00021643,3]
[334629321,1723362658450,-500.0,0.00021643,3]
[334629322,1723362658459,-1132.32,0.00021643,3]
[334629323,1723362658469,-281.70951642,0.00021643,3]
[334629324,1723362658478,-500.0,0.00021643,3]
[334629325,1723362658487,-500.0,0.00021643,3]
[334629326,1723362658496,-193.713975,0.00021643,2]
[334629327,1723362658506,-193.713975,0.00021643,2]
[334629328,1723362658515,-578.61,0.00021643,3]
[334629329,1723362658525,-500.0,0.00021643,3]
[334629330,1723362658536,-193.713975,0.00021643,2]
[334629331,1723362658546,-193.713975,0.00021643,2]
[334629332,1723362658556,-500.0,0.00021643,3]
[334629333,1723362658567,-500.0,0.00021643,3]
[334629334,1723362658576,-500.0,0.00021643,3]
[334629335,1723362658587,-500.0,0.00021643,3]
[334629336,1723362658597,-500.0,0.00021643,3]
[334629337,1723362658610,-1990.98,0.00021643,3]
[334629338,1723362658620,-2156.57,0.00021643,3]
[334629339,1723362658630,-11025.12,0.00021643,3]
[334629340,1723362658646,-500.0,0.00021643,3]
[334629341,1723362658656,-500.0,0.00021643,3]
[334629342,1723362658665,-500.0,0.00021643,3]
[334629343,1723362658674,-826.0,0.00021643,3]
[334629344,1723362658683,-500.0,0.00021643,3]
[334629345,1723362658692,-601.27,0.00021643,3]
[334629346,1723362658702,-3558.22,0.00021643,3]
[334629347,1723362658712,-584.81,0.00021643,3]
[334629348,1723362658722,-500.0,0.00021643,3]
[334629349,1723362658732,-744.58,0.00021643,3]
[334629350,1723362658741,-500.0,0.00021643,3]
[334629351,1723362658750,-2045.01,0.00021643,3]
[334629352,1723362658759,-500.0,0.00021643,3]
[334629353,1723362658768,-2154.04,0.00021643,3]
[334629354,1723362658778,-550.84,0.00021643,3]
[334629355,1723362658787,-535.4,0.00021643,3]
[334629356,1723362658796,-546.29020655,0.00021643,3]
[334629357,1723362658805,-688.94,0.00021643,3]
[334629358,1723362658814,-500.0,0.00021643,3]
[334629359,1723362658823,-962.04,0.00021643,3]
[334629360,1723362658832,-653.95,0.00021643,3]
[334629361,1723362658841,-500.0,0.00021643,3]
[334629362,1723362658850,-500.0,0.00021643,3]
[334629363,1723362658859,-368.652512,0.00021643,2]
[334629364,1723362658868,-368.652512,0.00021643,2]
[334629365,1723362658877,-915.81,0.00021643,3]
[334629366,1723362658886,-900.93,0.00021643,3]
[334629367,1723362658895,-368.652512,0.00021643,2]
[334629368,1723362658905,-368.652512,0.00021643,2]
[334629369,1723362658914,-333.26508074,0.00021643,3]
[334629370,1723362658924,-500.0,0.00021643,3]
[334629371,1723362658933,-500.0,0.00021643,3]
[334629372,1723362658943,-2885.15,0.00021643,3]
[334629373,1723362658960,-500.0,0.00021643,3]
[334629374,1723362658970,-179.566745,0.00021643,2]
[334629375,1723362658980,-179.566745,0.00021643,2]
[334629376,1723362658989,-156.464897,0.00021643,2]
[334629377,1723362659001,-156.464897,0.00021643,2]
[334629378,1723362659011,-1432.01,0.00021643,3]
[334629379,1723362659020,-500.0,0.00021643,3]
[334629380,1723362659029,-179.566745,0.00021643,2]
[334629381,1723362659042,-179.566745,0.00021643,2]
[334629382,1723362659052,-156.464897,0.00021643,2]
[334629383,1723362659061,-1113.43,0.00021643,3]
[334629384,1723362659070,-156.464897,0.00021643,2]
[334629385,1723362659079,-500.0,0.00021643,3]
[334629386,1723362659088,-500.0,0.00021643,3]
[334629387,1723362659097,-500.0,0.00021643,3]
[334629388,1723362659106,-1537.78,0.00021643,3]
[334629389,1723362659116,-13411.71,0.00021643,3]
[334629390,1723362659125,-1539.47,0.00021643,3]
[334629391,1723362659134,-500.0,0.00021643,3]
[334629392,1723362659143,-500.0,0.00021643,3]
[334629393,1723362659152,-2335.06,0.00021643,3]
[334629394,1723362659161,-634.209797,0.00021643,2]
[334629395,1723362659171,-634.209797,0.00021643,2]
[334629396,1723362659180,-3337.32,0.00021643,3]
[334629397,1723362659190,-751.64,0.00021643,3]
[334629398,1723362659199,-1344.43,0.00021643,3]
[334629399,1723362659213,-634.209797,0.00021643,2]
[334629400,1723362659221,-634.209797,0.00021643,2]
[334629401,1723362659230,-151.0,0.00021643,2]
[334629402,1723362659240,-151.0,0.00021643,2]
[334629403,1723362659250,-500.0,0.00021643,3]
[334629404,1723362659260,-1081.06,0.00021643,3]
[334629405,1723362659269,-500.0,0.00021643,3]
[334629406,1723362659280,-559.31900302,0.00021643,3]
[334629407,1723362659500,-1796.28099698,0.00021643,3]
[334629408,1723362659509,-151.0,0.00021643,2]
[334629409,1723362659518,-207.51900302,0.00021643,3]
[334629410,1723362659794,-301.25996446,0.00016159,2]
[334629411,1723362659805,-156.69756504,0.00017379,2]
[334629412,1723362659815,-293.4226268,0.00017379,2]
[334629413,1723362659826,-414.28019691,0.00019547,2]
[334629414,1723362659836,-200.0,0.00021073,2]
[334629415,1723362659846,-292.48099698,0.00021643,3]
[334629416,1723362659856,-8026.04,0.00021643,3]
[334629417,1723362659865,-1196.63,0.00021643,3]
[334629418,1723362659876,-932.75,0.00021643,3]
[334629419,1723362659886,-500.0,0.00021643,3]
[334629420,1723362659896,-5497.53,0.00021643,3]
[334629421,1723362659905,-1683.89,0.00021643,3]
[334629422,1723362659915,-500.0,0.00021643,3]
[334629423,1723362659924,-500.0,0.00021643,3]
[334629424,1723362659934,-500.0,0.00021643,3]
[334629425,1723362659945,-151.0,0.00021643,2]
[334629426,1723362659955,-500.0,0.00021643,3]
[334629427,1723362659964,-1284.01,0.00021643,3]
[334629428,1723362659974,-1883.0,0.00021643,3]
[334629429,1723362659984,-295.74609,0.00021643,2]
[334629430,1723362659993,-1945.38,0.00021643,3]
[334629431,1723362660004,-604.24,0.00021643,3]
[334629432,1723362660016,-3306.35,0.00021643,3]
[334629433,1723362660028,-500.0,0.00021643,3]
[334629434,1723362660037,-6326.26,0.00021643,3]
[334629435,1723362660047,-343.052576,0.00021643,2]
[334629436,1723362660056,-500.0,0.00021643,3]
[334629437,1723362660066,-651.88,0.00021643,3]
[334629438,1723362660076,-343.052576,0.00021643,2]
[334629439,1723362660085,-500.0,0.00021643,3]
[334629440,1723362660094,-199.27169061,0.00021643,3]
[334629441,1723362660133,-1656.26830939,0.00021643,3]
[334629442,1723362660145,-500.0,0.00021643,3]
[334629443,1723362660155,-1232.07,0.00021643,3]
[334629444,1723362660314,-500.0,0.00021643,3]
[334629445,1723362660328,-500.0,0.00021643,3]
[334629446,1723362660339,-500.0,0.00021643,3]
[334629447,1723362660349,-500.0,0.00021643,3]
[334629448,1723362660359,-720.26169061,0.00021643,3]
[334629449,1723362660377,-1025.07830939,0.00021643,3]
[334629450,1723362660388,-154.577075,0.00021643,2]
[334629451,1723362660399,-7202.54,0.00021643,3]
[334629452,1723362660409,-701.53,0.00021643,3]
[334629453,1723362660420,-154.577075,0.00021643,2]
[334629454,1723362660431,-1054.28,0.00021643,3]
[334629455,1723362660443,-724.56,0.00021643,3]
[334629456,1723362660455,-957.17,0.00021643,3]
[334629457,1723362660465,-500.0,0.00021643,3]
[334629458,1723362660474,-500.0,0.00021643,3]
[334629459,1723362660482,-500.0,0.00021643,3]
[334629460,1723362660491,-2445.87,0.00021643,3]
[334629461,1723362660500,-500.0,0.00021643,3]
[334629462,1723362660509,-813.43,0.00021643,3]
[334629463,1723362660519,-500.0,0.00021643,3]
[334629464,1723362660528,-500.0,0.00021643,3]
[334629465,1723362660538,-500.0,0.00021643,3]
[334629466,1723362660549,-160.0,0.00021669,4]
[334629467,1723362660560,-380.325766,0.0002169,2]
[334629468,1723362660570,-48788.31374461,0.0002176,2]
[334629469,1723362660700,154.76012181,9.999e-05,2]
[334629470,1723362661146,-241.01224895,0.00015708,2]
[334629471,1723362661158,-196.63865106,0.0001571,2]
[334629472,1723362661169,-850.13586547,0.00016309,2]
[334629473,1723362661179,-154.76012181,0.00016532,2]
[334629474,1723362661190,-404.08727484,0.00017403,2]
[334629475,1723362661200,-2993.60033153,0.0002082,2]
[334629476,1723362661213,-73075.50459851,0.0002176,2]
[334629477,1723362661223,-151.0,0.0002176,2]
[334629478,1723362661235,-151.0,0.0002176,2]
[334629479,1723362661247,-343.052576,0.0002176,2]
[334629480,1723362661258,-343.052576,0.0002176,2]
[334629481,1723362661269,-154.577075,0.0002176,2]
[334629482,1723362661280,-154.577075,0.0002176,2]
[334629483,1723362661292,-600.0,0.0002191,2]
[334629484,1723362661301,-6441.22016447,0.00021917,11]
[334629485,1723362661313,-800.02,0.00021917,3]
[334629486,1723362661325,-500.0,0.00021917,3]
[334629487,1723362661337,-500.0,0.00021917,3]
[334629488,1723362661347,-500.0,0.00021917,3]
[334629489,1723362661357,-1160.49,0.00021917,3]
[334629490,1723362661367,-506.19,0.00021917,3]
[334629491,1723362661379,-500.0,0.00021917,3]
[334629492,1723362661388,-563.57,0.00021917,3]
[334629493,1723362661398,-500.0,0.00021917,3]
[334629494,1723362661408,-836.61,0.00021917,3]
[334629495,1723362661419,-500.0,0.00021917,3]
[334629496,1723362661428,-500.0,0.00021917,3]
[334629497,1723362661438,-500.0,0.00021917,3]
[334629498,1723362661448,-500.0,0.00021917,3]
[334629499,1723362661459,-500.0,0.00021917,3]
[334629500,1723362661468,-500.0,0.00021917,3]
[334629501,1723362661478,-500.0,0.00021917,3]
[334629502,1723362661488,-1281.06,0.00021917,3]
[334629503,1723362661499,-1190.62490945,0.00021917,3]
[334629504,1723362661509,-996.62,0.00021917,3]
[334629505,1723362661518,-500.0,0.00021917,3]
[334629506,1723362661527,-500.0,0.00021917,3]
[334629507,1723362661536,-500.0,0.00021917,3]
[334629508,1723362661545,-500.0,0.00021917,3]
[334629509,1723362661554,-500.0,0.00021917,3]
[334629510,1723362661564,-500.0,0.00021917,3]
[334629511,1723362661573,-500.0,0.00021917,3]
[334629512,1723362661582,-500.0,0.00021917,2]
[334629513,1723362661591,-500.0,0.00021917,3]
[334629514,1723362661599,-500.0,0.00021917,3]
[334629515,1723362661608,-516.3411202,0.00021917,3]
[334629516,1723362661618,-500.0,0.00021917,3]
[334629517,1723362661627,-500.0,0.00021917,3]
[334629518,1723362661636,-500.0,0.00021917,3]
[334629519,1723362661645,-500.0,0.00021917,3]
[334629520,1723362661654,-500.0,0.00021917,3]
[334629521,1723362661664,-978.48,0.00021917,3]
[334629522,1723362661673,-580.17,0.00021917,3]
[334629523,1723362661682,-500.0,0.00021917,3]
[334629524,1723362661691,-500.0,0.00021917,3]
[334629525,1723362661700,-889.52,0.00021917,3]
[334629526,1723362661709,-500.0,0.00021917,3]
[334629527,1723362661719,-500.0,0.00021917,3]
[334629528,1723362661729,-500.0,0.00021917,3]
[334629529,1723362661738,-228.112835,0.00021917,2]
[334629530,1723362661747,-500.0,0.00021917,3]
[334629531,1723362661756,-228.112835,0.00021917,2]
[334629532,1723362661765,-500.0,0.00021917,3]
[334629533,1723362661774,-500.0,0.00021917,3]
[334629534,1723362661784,-980.3,0.00021917,3]
[334629535,1723362661793,-500.0,0.00021917,3]
[334629536,1723362661802,-500.0,0.00021917,3]
[334629537,1723362661811,-500.0,0.00021917,3]
[334629538,1723362661821,-500.0,0.00021917,3]
[334629539,1723362661830,-500.0,0.00021917,3]
[334629540,1723362661839,-500.0,0.00021917,3]
[334629541,1723362661849,-1842.55,0.00021917,3]
[334629542,1723362661858,-500.0,0.00021917,3]
[334629543,1723362661868,-500.0,0.00021917,3]
[334629544,1723362661877,-500.0,0.00021917,3]
[334629545,1723362661885,-755.76,0.00021917,3]
[334629546,1723362661895,-500.0,0.00021917,3]
[334629547,1723362661904,-516.72,0.00021917,3]
[334629548,1723362661913,-500.0,0.00021917,3]
[334629549,1723362661923,-500.0,0.00021917,3]
[334629550,1723362661931,-500.0,0.00021917,3]
[334629551,1723362661941,-500.0,0.00021917,3]
[334629552,1723362661950,-500.0,0.00021917,3]
[334629553,1723362661959,-1632.41,0.00021917,3]
[334629554,1723362661968,-500.0,0.00021917,3]
[334629555,1723362661977,-500.0,0.00021917,3]
[334629556,1723362661987,-602.71,0.00021917,3]
[334629557,1723362661996,-597.31,0.00021917,3]
[334629558,1723362662005,-913.27,0.00021917,3]
[334629559,1723362662014,-601.09,0.00021917,2]
[334629560,1723362662023,-613.51,0.00021917,3]
[334629561,1723362662032,-1119.4,0.00021917,3]
[334629562,1723362662042,-540.80613456,0.00021917,3]
[334629563,1723362662051,-500.0,0.00021917,3]
[334629564,1723362662060,-434.89956068,0.00021917,3]
[334629565,1723362662070,-779.9770581,0.00021917,5]
[334629566,1723362662082,-500.0,0.00021917,3]
[334629567,1723362662093,-500.0,0.00021917,3]
[334629568,1723362662104,-500.0,0.00021917,3]
[334629569,1723362662115,-500.0,0.00021917,3]
[334629570,1723362662125,-712.22,0.00021917,3]
[334629571,1723362662135,-462.073422,0.00021917,2]
[334629572,1723362662146,-462.073422,0.00021917,2]
[334629573,1723362662155,-462.073422,0.00021917,2]
[334629574,1723362662164,-500.0,0.00021917,3]
[334629575,1723362662175,-462.073422,0.00021917,2]
[334629576,1723362662184,-500.0,0.00021917,3]
[334629577,1723362662194,-756.66,0.00021917,3]
[334629578,1723362662205,-702.55,0.00021917,3]
[334629579,1723362662215,-500.0,0.00021917,3]
[334629580,1723362662224,-663.08,0.00021917,3]
[334629581,1723362662234,-500.0,0.00021917,3]
[334629582,1723362662244,-500.0,0.00021917,3]
[334629583,1723362662253,-500.0,0.00021917,3]
[334629584,1723362662262,-500.0,0.00021917,3]
[334629585,1723362662271,-500.0,0.00021917,3]
[334629586,1723362662282,-500.0,0.00021917,3]
[334629587,1723362662292,-1128.48,0.00021917,3]
[334629588,1723362662301,-1307.77,0.00021917,3]
[334629589,1723362662310,-592.84,0.00021917,3]
[334629590,1723362662319,-500.0,0.00021917,3]
[334629591,1723362662329,-964.79,0.00021917,3]
[334629592,1723362662338,-611.55,0.00021917,3]
[334629593,1723362662347,-787.99,0.00021917,3]
[334629594,1723362662357,-727.74,0.00021917,3]
[334629595,1723362662367,-884.38,0.00021917,3]
[334629596,1723362662376,-500.0,0.00021917,3]
[334629597,1723362662385,-1340.25,0.00021917,3]
[334629598,1723362662395,-500.0,0.00021917,3]
[334629599,1723362662405,-500.0,0.00021917,3]
[334629600,1723362662415,-1311.55,0.00021917,3]
[334629601,1723362662424,-500.0,0.00021917,3]
[334629602,1723362662433,-557.89,0.00021917,3]
[334629603,1723362662442,-500.0,0.00021917,3]
[334629604,1723362662451,-655.39,0.00021917,3]
[334629605,1723362662461,-1362.06,0.00021917,3]
[334629606,1723362662470,-505.26,0.00021917,3]
[334629607,1723362662479,-604.21,0.00021917,3]
[334629608,1723362662488,-500.0,0.00021917,3]
[334629609,1723362662498,-1408.56,0.00021917,3]
[334629610,1723362662509,-500.0,0.00021917,3]
[334629611,1723362662518,-500.0,0.00021917,3]
[334629612,1723362662527,-1138.06,0.00021917,3]
[334629613,1723362662538,-500.0,0.00021917,3]
[334629614,1723362662548,-500.0,0.00021917,3]
[334629615,1723362662557,-500.0,0.00021917,3]
[334629616,1723362662566,-511.38072322,0.00021917,3]
[334629617,1723362662575,-500.0,0.00021917,3]
[334629618,1723362662584,-500.0,0.00021917,3]
[334629619,1723362662595,-500.0,0.00021917,3]
[334629620,1723362662607,-500.0,0.00021917,3]
[334629621,1723362662620,-500.0,0.00021917,3]
[334629622,1723362662630,-729.4,0.00021917,3]
[334629623,1723362662639,-862.17,0.00021917,3]
[334629624,1723362662650,-500.0,0.00021917,3]
[334629625,1723362662660,-500.0,0.00021917,3]
[334629626,1723362662671,-500.0,0.00021917,3]
[334629627,1723362662683,-270.805678,0.00021917,2]
[334629628,1723362662694,-500.0,0.00021917,3]
[334629629,1723362662705,-500.0,0.00021917,3]
[334629630,1723362662716,-270.805678,0.00021917,2]
[334629631,1723362662728,-500.0,0.00021917,3]
[334629632,1723362662740,-581.13,0.00021917,3]
[334629633,1723362662750,-500.0,0.00021917,3]
[334629634,1723362662760,-500.0,0.00021917,3]
[334629635,1723362662771,-1721.14,0.00021917,3]
[334629636,1723362662784,-818.53,0.00021917,3]
[334629637,1723362662794,-1817.84,0.00021917,3]
[334629638,1723362662804,-500.0,0.00021917,3]
[334629639,1723362662814,-500.0,0.00021917,3]
[334629640,1723362662823,-500.0,0.00021917,3]
[334629641,1723362662833,-500.0,0.00021917,3]
[334629642,1723362662843,-500.0,0.00021917,3]
[334629643,1723362662852,-1744.85,0.00021917,3]
[334629644,1723362662862,-500.0,0.00021917,3]
[334629645,1723362662872,-500.0,0.00021917,3]